[Event "Grandmaster Triathlon (GM1)"]
[Site "Biel, CH"]
[Date "2025.07.19"]
[Round "10"]
[White "Aravindh, Chithambaram VR."]
[Black "Salem, A.R. Saleh"]
[Result "0-1"]
[Board "2"]
[TimeControl "40/7200:1800+30"]
[WhiteFideId "5072786"]
[BlackFideId "9301348"]
[WhiteTitle "GM"]
[BlackTitle "GM"]
[WhiteElo "2724"]
[BlackElo "2627"]
[WhiteTeam "IND"]
[BlackTeam "UAE"]
[WhiteClock "0:18:35"]
[BlackClock "0:07:42"]
[Variant "Standard"]

1. d4 {[%clk 1:59:51]}  Nf6 {[%clk 1:59:14]} 2. c4 {[%clk 1:59:26]}  g6 {[%clk 1:59:05]} 3. f3 {[%clk 1:59:15]}  c5 {[%clk 1:58:30]} 4. d5 {[%clk 1:59:02]}  d6 {[%clk 1:58:25]} 5. e4 {[%clk 1:58:48]}  Bg7 {[%clk 1:58:15]} 6. Ne2 {[%clk 1:58:26]}  e6 {[%clk 1:57:11]} 7. Nbc3 {[%clk 1:57:54]}  exd5 {[%clk 1:56:47]} 8. cxd5 {[%clk 1:57:45]}  Nbd7 {[%clk 1:56:32]} 9. Ng3 {[%clk 1:57:20]}  h5 {[%clk 1:54:42]} 10. Be2 {[%clk 1:56:56]}  Nh7 {[%clk 1:47:03]} 11. a4 {[%clk 1:56:01]}  O-O {[%clk 1:46:27]} 12. Ra3 {[%clk 1:54:42]}  Qe7 {[%clk 1:43:59]} 13. Nf1 {[%clk 1:39:00]}  f5 {[%clk 1:43:31]} 14. exf5 {[%clk 1:38:11]}  gxf5 {[%clk 1:43:16]} 15. Ne3 {[%clk 1:21:22]}  Ne5 {[%clk 1:42:03]} 16. O-O {[%clk 1:17:06]}  Bd7 {[%clk 1:40:10]} 17. g3 {[%clk 0:29:10]}  Rae8 {[%clk 1:22:15]} 18. Ng2 {[%clk 0:45:59]}  Ng6 {[%clk 1:21:11]} 19. Bb5 {[%clk 0:44:54]}  Bxb5 {[%clk 1:08:30]} 20. axb5 {[%clk 0:44:44]}  Bd4+ {[%clk 1:07:45]} 21. Kh1 {[%clk 0:44:39]}  h4 {[%clk 1:07:14]} 22. gxh4 {[%clk 0:39:21]}  Nxh4 {[%clk 0:53:49]} 23. Nf4 {[%clk 0:38:58]}  Ng5 {[%clk 0:39:05]} 24. Nce2 {[%clk 0:37:52]}  Kf7 {[%clk 0:31:43]} 25. Nxd4 {[%clk 0:17:36]}  cxd4 {[%clk 0:31:37]} 26. Ne6 {[%clk 0:17:32]}  Nxe6 {[%clk 0:30:31]} 27. dxe6+ {[%clk 0:17:23]}  Qxe6 {[%clk 0:30:21]} 28. Qxd4 {[%clk 0:12:57]}  Qe2 {[%clk 0:19:00]} 29. Rg1 {[%clk 0:16:10]}  Ng6 {[%clk 0:07:10]} 30. Qd5+ {[%clk 0:14:15]}  Qe6 {[%clk 0:07:06]} 31. Qxe6+ {[%clk 0:14:09]}  Rxe6 {[%clk 0:07:02]} 32. Bg5 {[%clk 0:13:59]}  Re2 {[%clk 0:05:29]} 33. Rxa7 {[%clk 0:13:52]}  Rb8 {[%clk 0:04:10]} 34. Raa1 {[%clk 0:06:46]}  Rxb2 {[%clk 0:03:47]} 35. Rad1 {[%clk 0:05:19]}  Ne5 {[%clk 0:03:43]} 36. Bf4 {[%clk 0:02:50]}  Nxf3 {[%clk 0:03:42]} 37. Rg2 {[%clk 0:02:28]}  Rxb5 {[%clk 0:03:20]} 38. Rf2 {[%clk 0:01:36]}  Rb3 {[%clk 0:03:17]} 39. Kg2 {[%clk 0:01:21]}  Rg8+ {[%clk 0:02:29]} 40. Kh1 {[%clk 0:31:23]}  Ne5 {[%clk 0:31:07]} 41. Bxe5 {[%clk 0:28:14]}  dxe5 {[%clk 0:30:41]} 42. Rxf5+ {[%clk 0:28:40]}  Ke6 {[%clk 0:31:07]} 43. Rff1 {[%clk 0:29:06]}  b5 {[%clk 0:29:09]} 44. Rb1 {[%clk 0:23:32]}  Rxb1 {[%clk 0:29:09]} 45. Rxb1 {[%clk 0:23:57]}  Rb8 {[%clk 0:28:49]} 46. Kg2 {[%clk 0:24:14]}  b4 {[%clk 0:19:55]} 47. Kf3 {[%clk 0:24:39]}  Kd5 {[%clk 0:19:17]} 48. h4 {[%clk 0:19:03]}  b3 {[%clk 0:14:15]} 49. Rd1+ {[%clk 0:17:27]}  Kc4 {[%clk 0:12:04]} 50. Ke4 {[%clk 0:17:51]}  b2 {[%clk 0:09:57]} 51. Rb1 {[%clk 0:18:16]}  Kb3 {[%clk 0:08:35]} 52. Kxe5 {[%clk 0:18:35]}  Rf8 {[%clk 0:07:42]} 0-1

[Event "Grandmaster Triathlon (GM1)"]
[Site "Biel, CH"]
[Date "2025.07.19"]
[Round "10"]
[White "Murzin, Volodar"]
[Black "Wojtaszek, Radoslaw"]
[Result "1/2-1/2"]
[Board "3"]
[TimeControl "40/7200:1800+30"]
[WhiteFideId "44155573"]
[BlackFideId "1118358"]
[WhiteTitle "GM"]
[BlackTitle "GM"]
[WhiteElo "2671"]
[BlackElo "2651"]
[WhiteTeam "FID"]
[BlackTeam "POL"]
[WhiteClock "0:05:13"]
[BlackClock "0:25:57"]
[Variant "Standard"]

1. Nf3 {[%clk 1:59:22]}  d5 {[%clk 1:59:52]} 2. g3 {[%clk 1:59:17]}  c5 {[%clk 1:59:12]} 3. Bg2 {[%clk 1:59:08]}  Nf6 {[%clk 1:58:57]} 4. O-O {[%clk 1:58:20]}  g6 {[%clk 1:58:52]} 5. c4 {[%clk 1:52:34]}  Bg7 {[%clk 1:58:44]} 6. cxd5 {[%clk 1:40:16]}  Nxd5 {[%clk 1:58:37]} 7. d4 {[%clk 1:40:11]}  cxd4 {[%clk 1:58:26]} 8. Nxd4 {[%clk 1:40:08]}  O-O {[%clk 1:58:14]} 9. Nc3 {[%clk 1:35:56]}  Nb6 {[%clk 1:57:28]} 10. Ndb5 {[%clk 1:27:52]}  Nc6 {[%clk 1:57:15]} 11. Bf4 {[%clk 1:20:35]}  Bf5 {[%clk 1:57:05]} 12. Qc1 {[%clk 1:05:17]}  Nc4 {[%clk 1:56:48]} 13. Nc7 {[%clk 0:52:26]}  Rc8 {[%clk 1:04:01]} 14. Rd1 {[%clk 0:38:30]}  Nd4 {[%clk 1:00:42]} 15. N7d5 {[%clk 0:38:24]}  e5 {[%clk 0:51:06]} 16. Bg5 {[%clk 0:30:43]}  f6 {[%clk 0:50:42]} 17. Be3 {[%clk 0:26:07]}  Nxe3 {[%clk 0:43:56]} 18. Qxe3 {[%clk 0:26:01]}  Nc2 {[%clk 0:41:16]} 19. Qxa7 {[%clk 0:25:42]}  Nxa1 {[%clk 0:41:11]} 20. Rxa1 {[%clk 0:15:21]}  Rb8 {[%clk 0:39:21]} 21. Rd1 {[%clk 0:14:56]}  Kh8 {[%clk 0:33:35]} 22. Ne3 {[%clk 0:14:46]}  Bd7 {[%clk 0:32:12]} 23. Bc6 {[%clk 0:10:36]}  bxc6 {[%clk 0:26:56]} 24. Rxd7 {[%clk 0:10:28]}  Ra8 {[%clk 0:26:52]} 25. Qb7 {[%clk 0:10:10]}  Rb8 {[%clk 0:26:50]} 26. Qa7 {[%clk 0:09:08]}  Ra8 {[%clk 0:26:49]} 27. Qb7 {[%clk 0:09:07]}  Rb8 {[%clk 0:26:29]} 28. Qa7 {[%clk 0:05:18]}  Ra8 {[%clk 0:26:10]} 29. Qb7 {[%clk 0:05:13]}  Rb8 {[%clk 0:25:57]} 1/2-1/2

[Event "Grandmaster Triathlon (GM1)"]
[Site "Biel, CH"]
[Date "2025.07.20"]
[Round "11"]
[White "Fedoseev, Vladimir"]
[Black "Aravindh, Chithambaram VR."]
[Result "0-1"]
[Board "1"]
[TimeControl "180+2"]
[WhiteFideId "24130737"]
[BlackFideId "5072786"]
[WhiteTitle "GM"]
[BlackTitle "GM"]
[WhiteElo "2746"]
[BlackElo "2611"]
[WhiteTeam "SLO"]
[BlackTeam "IND"]
[WhiteClock "0:00:12"]
[BlackClock "0:00:08"]
[Variant "Standard"]

1. d4 {[%clk 0:03:03]}  d5 {[%clk 0:03:03]} 2. Nf3 {[%clk 0:03:03]}  Nf6 {[%clk 0:03:03]} 3. c3 {[%clk 0:03:04]}  Bf5 {[%clk 0:02:56]} 4. Qb3 {[%clk 0:03:04]}  Qc8 {[%clk 0:02:56]} 5. c4 {[%clk 0:03:05]}  e6 {[%clk 0:02:57]} 6. Nc3 {[%clk 0:03:01]}  c6 {[%clk 0:02:54]} 7. Bg5 {[%clk 0:02:56]}  Nbd7 {[%clk 0:02:54]} 8. e3 {[%clk 0:02:54]}  Bd6 {[%clk 0:02:53]} 9. Rc1 {[%clk 0:02:52]}  h6 {[%clk 0:02:49]} 10. Bh4 {[%clk 0:02:51]}  O-O {[%clk 0:02:49]} 11. Be2 {[%clk 0:02:52]}  a6 {[%clk 0:02:29]} 12. O-O {[%clk 0:02:49]}  dxc4 {[%clk 0:02:28]} 13. Bxc4 {[%clk 0:02:45]}  b5 {[%clk 0:02:29]} 14. Be2 {[%clk 0:02:44]}  c5 {[%clk 0:02:27]} 15. dxc5 {[%clk 0:02:19]}  Nxc5 {[%clk 0:02:27]} 16. Qd1 {[%clk 0:02:20]}  Qb8 {[%clk 0:02:02]} 17. Bxf6 {[%clk 0:02:21]}  gxf6 {[%clk 0:02:03]} 18. Qd4 {[%clk 0:02:22]}  Kg7 {[%clk 0:01:59]} 19. b4 {[%clk 0:02:15]}  Na4 {[%clk 0:01:53]} 20. Nxa4 {[%clk 0:01:30]}  bxa4 {[%clk 0:01:53]} 21. Rc4 {[%clk 0:01:29]}  Rd8 {[%clk 0:01:48]} 22. Qc3 {[%clk 0:01:17]}  Bg6 {[%clk 0:01:41]} 23. g3 {[%clk 0:01:15]}  a5 {[%clk 0:01:18]} 24. bxa5 {[%clk 0:00:56]}  a3 {[%clk 0:01:19]} 25. Nh4 {[%clk 0:00:42]}  Qb2 {[%clk 0:00:26]} 26. Nxg6 {[%clk 0:00:33]}  Qxe2 {[%clk 0:00:26]} 27. Nf4 {[%clk 0:00:31]}  Qxa2 {[%clk 0:00:18]} 28. Nh5+ {[%clk 0:00:29]}  Kf8 {[%clk 0:00:19]} 29. Rg4 {[%clk 0:00:21]}  Qb2 {[%clk 0:00:20]} 30. Qd3 {[%clk 0:00:14]}  a2 {[%clk 0:00:17]} 31. Ra4 {[%clk 0:00:12]}  Be5 {[%clk 0:00:10]} 32. Qc4 {[%clk 0:00:08]}  Rd2 {[%clk 0:00:10]} 33. Qc5+ {[%clk 0:00:04]}  Kg8 {[%clk 0:00:06]} 34. a6 {[%clk 0:00:38]}  Qc2 {[%clk 0:00:04]} 35. Rg4+ {[%clk 0:00:33]}  Kh8 {[%clk 0:00:05]} 36. Qe7 {[%clk 0:00:34]}  Rd1 {[%clk 0:00:05]} 37. Qb7 {[%clk 0:00:29]}  Rxf1+ {[%clk 0:00:05]} 38. Kxf1 {[%clk 0:00:30]}  a1=Q+ {[%clk 0:00:06]} 39. Kg2 {[%clk 0:00:31]}  Qxa6 {[%clk 0:00:05]} 40. Qxf7 {[%clk 0:00:31]}  Qac6+ {[%clk 0:00:05]} 41. Kh3 {[%clk 0:00:30]}  Qh7 {[%clk 0:00:05]} 42. Rg7 {[%clk 0:00:25]}  Qf5+ {[%clk 0:00:06]} 43. Kh4 {[%clk 0:00:26]}  Qce4+ {[%clk 0:00:05]} 44. f4 {[%clk 0:00:26]}  Qg5+ {[%clk 0:00:05]} 45. Rxg5 {[%clk 0:00:23]}  fxg5+ {[%clk 0:00:06]} 46. Kh3 {[%clk 0:00:20]}  Bc3 {[%clk 0:00:04]} 47. Qc7 {[%clk 0:00:17]}  Qf5+ {[%clk 0:00:04]} 48. g4 {[%clk 0:00:18]}  Qd3 {[%clk 0:00:05]} 49. fxg5 {[%clk 0:00:14]}  Qf1+ {[%clk 0:00:05]} 50. Kh4 {[%clk 0:00:14]}  Be1+ {[%clk 0:00:05]} 51. Ng3 {[%clk 0:00:15]}  Bxg3+ {[%clk 0:00:06]} 52. Qxg3 {[%clk 0:00:15]}  hxg5+ {[%clk 0:00:05]} 53. Kxg5 {[%clk 0:00:16]}  Qf7 {[%clk 0:00:05]} 54. Qd6 {[%clk 0:00:13]}  Rg8+ {[%clk 0:00:05]} 55. Kh4 {[%clk 0:00:14]}  Qf2+ {[%clk 0:00:05]} 56. Kh5 {[%clk 0:00:13]}  Qf6 {[%clk 0:00:06]} 57. Qf4 {[%clk 0:00:10]}  Qxf4 {[%clk 0:00:06]} 58. exf4 {[%clk 0:00:12]}  Kg7 {[%clk 0:00:07]} 59. g5 {[%clk 0:00:12]}  Rh8+ {[%clk 0:00:08]} 0-1

[Event "Grandmaster Triathlon (GM1)"]
[Site "Biel, CH"]
[Date "2025.07.20"]
[Round "11"]
[White "Wojtaszek, Radoslaw"]
[Black "Svane, Frederik"]
[Result "1-0"]
[Board "2"]
[TimeControl "180+2"]
[WhiteFideId "1118358"]
[BlackFideId "12923044"]
[WhiteTitle "GM"]
[BlackTitle "GM"]
[WhiteElo "2610"]
[BlackElo "2553"]
[WhiteTeam "POL"]
[BlackTeam "GER"]
[WhiteClock "0:00:18"]
[BlackClock "0:00:05"]
[Variant "Standard"]

1. Nf3 {[%clk 0:03:03]}  d5 {[%clk 0:03:04]} 2. g3 {[%clk 0:03:03]}  Bg4 {[%clk 0:03:04]} 3. Bg2 {[%clk 0:03:04]}  Nd7 {[%clk 0:03:05]} 4. h3 {[%clk 0:03:05]}  Bxf3 {[%clk 0:03:06]} 5. Bxf3 {[%clk 0:03:06]}  e6 {[%clk 0:03:07]} 6. d4 {[%clk 0:02:58]}  c6 {[%clk 0:03:01]} 7. Nd2 {[%clk 0:02:58]}  f5 {[%clk 0:02:55]} 8. c4 {[%clk 0:02:48]}  Ngf6 {[%clk 0:02:56]} 9. Qb3 {[%clk 0:02:45]}  Rb8 {[%clk 0:02:48]} 10. Bg2 {[%clk 0:02:40]}  Bd6 {[%clk 0:02:49]} 11. Nf3 {[%clk 0:02:37]}  Ne4 {[%clk 0:02:42]} 12. O-O {[%clk 0:02:07]}  g5 {[%clk 0:02:43]} 13. Nd2 {[%clk 0:02:00]}  Qf6 {[%clk 0:02:37]} 14. Qe3 {[%clk 0:01:54]}  h6 {[%clk 0:02:12]} 15. cxd5 {[%clk 0:01:55]}  cxd5 {[%clk 0:02:11]} 16. Nxe4 {[%clk 0:01:51]}  dxe4 {[%clk 0:02:02]} 17. f3 {[%clk 0:01:52]}  Bxg3 {[%clk 0:01:57]} 18. fxe4 {[%clk 0:01:53]}  f4 {[%clk 0:01:40]} 19. Qd3 {[%clk 0:01:48]}  O-O {[%clk 0:01:39]} 20. e5 {[%clk 0:01:32]}  Qg7 {[%clk 0:01:37]} 21. e3 {[%clk 0:01:30]}  Rbd8 {[%clk 0:01:20]} 22. Qe4 {[%clk 0:01:28]}  fxe3 {[%clk 0:00:59]} 23. Bxe3 {[%clk 0:01:28]}  Nb6 {[%clk 0:00:59]} 24. Qg4 {[%clk 0:01:22]}  Bf4 {[%clk 0:00:57]} 25. Qxe6+ {[%clk 0:01:23]}  Kh8 {[%clk 0:00:59]} 26. Bf2 {[%clk 0:01:22]}  Rfe8 {[%clk 0:00:43]} 27. Qg4 {[%clk 0:01:18]}  Nc4 {[%clk 0:00:44]} 28. Kh1 {[%clk 0:01:11]}  Nxb2 {[%clk 0:00:25]} 29. Rab1 {[%clk 0:01:11]}  Nd3 {[%clk 0:00:26]} 30. Rxb7 {[%clk 0:01:11]}  Nxf2+ {[%clk 0:00:25]} 31. Rxf2 {[%clk 0:01:12]}  Re7 {[%clk 0:00:25]} 32. Rfb2 {[%clk 0:01:05]}  Rde8 {[%clk 0:00:04]} 33. Rxe7 {[%clk 0:00:57]}  Qxe7 {[%clk 0:00:05]} 34. Qh5 {[%clk 0:00:47]}  Qe6 {[%clk 0:00:03]} 35. Re2 {[%clk 0:00:24]}  Rc8 {[%clk 0:00:04]} 36. Re1 {[%clk 0:00:24]}  Rc2 {[%clk 0:00:04]} 37. d5 {[%clk 0:00:22]}  Qb6 {[%clk 0:00:04]} 38. Qe8+ {[%clk 0:00:20]}  Kg7 {[%clk 0:00:05]} 39. Qe7+ {[%clk 0:00:18]} 1-0

[Event "Grandmaster Triathlon (GM1)"]
[Site "Biel, CH"]
[Date "2025.07.20"]
[Round "11"]
[White "Salem, A.R. Saleh"]
[Black "Murzin, Volodar"]
[Result "0-1"]
[Board "3"]
[TimeControl "180+2"]
[WhiteFideId "9301348"]
[BlackFideId "44155573"]
[WhiteTitle "GM"]
[BlackTitle "GM"]
[WhiteElo "2644"]
[BlackElo "2669"]
[WhiteTeam "UAE"]
[BlackTeam "FID"]
[WhiteClock "0:00:05"]
[BlackClock "0:00:35"]
[Variant "Standard"]

1. d4 {[%clk 0:03:02]}  d5 {[%clk 0:03:03]} 2. c4 {[%clk 0:03:03]}  c6 {[%clk 0:03:04]} 3. Nf3 {[%clk 0:03:04]}  Nf6 {[%clk 0:03:05]} 4. Nc3 {[%clk 0:03:05]}  dxc4 {[%clk 0:03:06]} 5. a4 {[%clk 0:03:05]}  Bf5 {[%clk 0:03:06]} 6. Ne5 {[%clk 0:03:07]}  Nbd7 {[%clk 0:03:07]} 7. Nxc4 {[%clk 0:03:07]}  Nb6 {[%clk 0:03:08]} 8. Ne5 {[%clk 0:03:07]}  a5 {[%clk 0:03:09]} 9. h4 {[%clk 0:03:05]}  e6 {[%clk 0:03:09]} 10. f3 {[%clk 0:03:06]}  h6 {[%clk 0:03:10]} 11. e4 {[%clk 0:03:05]}  Bh7 {[%clk 0:03:11]} 12. Be3 {[%clk 0:03:05]}  Nfd7 {[%clk 0:03:11]} 13. Nd3 {[%clk 0:03:06]}  Bd6 {[%clk 0:03:12]} 14. Rh3 {[%clk 0:03:06]}  Qe7 {[%clk 0:03:12]} 15. Qb3 {[%clk 0:03:01]}  O-O {[%clk 0:03:11]} 16. g4 {[%clk 0:02:59]}  Rac8 {[%clk 0:02:53]} 17. g5 {[%clk 0:02:53]}  h5 {[%clk 0:02:53]} 18. Rd1 {[%clk 0:02:39]}  Bb4 {[%clk 0:02:41]} 19. Nxb4 {[%clk 0:02:30]}  Qxb4 {[%clk 0:02:40]} 20. Qa2 {[%clk 0:02:20]}  c5 {[%clk 0:02:12]} 21. Rh2 {[%clk 0:02:21]}  cxd4 {[%clk 0:02:09]} 22. Rxd4 {[%clk 0:02:21]}  Qe7 {[%clk 0:02:10]} 23. Rhd2 {[%clk 0:01:50]}  Ne5 {[%clk 0:02:02]} 24. Be2 {[%clk 0:01:51]}  Nc6 {[%clk 0:02:03]} 25. Rd6 {[%clk 0:01:52]}  Nb4 {[%clk 0:01:57]} 26. Qa3 {[%clk 0:01:11]}  N6d5 {[%clk 0:01:22]} 27. Nxd5 {[%clk 0:00:38]}  Qxd6 {[%clk 0:01:04]} 28. Nf6+ {[%clk 0:00:25]}  gxf6 {[%clk 0:01:05]} 29. Rxd6 {[%clk 0:00:26]}  Nc2+ {[%clk 0:01:06]} 30. Kf2 {[%clk 0:00:27]}  Nxa3 {[%clk 0:01:06]} 31. bxa3 {[%clk 0:00:28]}  f5 {[%clk 0:01:03]} 32. e5 {[%clk 0:00:26]}  f4 {[%clk 0:01:04]} 33. Bxf4 {[%clk 0:00:25]}  Rc2 {[%clk 0:01:01]} 34. Bd2 {[%clk 0:00:13]}  Ra8 {[%clk 0:00:54]} 35. f4 {[%clk 0:00:14]}  Bg6 {[%clk 0:00:52]} 36. Rd7 {[%clk 0:00:13]}  Ra2 {[%clk 0:00:48]} 37. Bb5 {[%clk 0:00:11]}  Rc8 {[%clk 0:00:45]} 38. Ke1 {[%clk 0:00:05]}  Rcc2 {[%clk 0:00:44]} 39. Be2 {[%clk 0:00:06]}  Ra1+ {[%clk 0:00:42]} 40. Kf2 {[%clk 0:00:06]}  Rxa3 {[%clk 0:00:42]} 41. Rd4 {[%clk 0:00:08]}  Rh3 {[%clk 0:00:36]} 42. Kg2 {[%clk 0:00:08]}  Rd3 {[%clk 0:00:33]} 43. Bxd3 {[%clk 0:00:05]}  Rxd2+ {[%clk 0:00:34]} 44. Kg1 {[%clk 0:00:06]}  Rxd3 {[%clk 0:00:34]} 45. Rc4 {[%clk 0:00:06]}  Rb3 {[%clk 0:00:35]} 46. Kf2 {[%clk 0:00:07]}  Rb4 {[%clk 0:00:34]} 47. Rc8+ {[%clk 0:00:09]}  Kg7 {[%clk 0:00:35]} 48. Ke2 {[%clk 0:00:05]} 0-1

[Event "Grandmaster Triathlon (GM1)"]
[Site "Biel, CH"]
[Date "2025.07.20"]
[Round "12"]
[White "Svane, Frederik"]
[Black "Aravindh, Chithambaram VR."]
[Result "1/2-1/2"]
[Board "1"]
[TimeControl "180+2"]
[WhiteFideId "12923044"]
[BlackFideId "5072786"]
[WhiteTitle "GM"]
[BlackTitle "GM"]
[WhiteElo "2553"]
[BlackElo "2611"]
[WhiteTeam "GER"]
[BlackTeam "IND"]
[WhiteClock "0:00:07"]
[BlackClock "0:00:07"]
[Variant "Standard"]

1. e4 {[%clk 0:03:03]}  c5 {[%clk 0:03:03]} 2. Nf3 {[%clk 0:03:04]}  e6 {[%clk 0:03:04]} 3. d4 {[%clk 0:03:05]}  cxd4 {[%clk 0:03:04]} 4. Nxd4 {[%clk 0:03:06]}  a6 {[%clk 0:03:05]} 5. a3 {[%clk 0:03:04]}  Qc7 {[%clk 0:03:03]} 6. c4 {[%clk 0:02:58]}  Nf6 {[%clk 0:03:03]} 7. Nc3 {[%clk 0:02:59]}  b6 {[%clk 0:03:04]} 8. Bd3 {[%clk 0:02:57]}  Bb7 {[%clk 0:03:03]} 9. Be3 {[%clk 0:02:56]}  d6 {[%clk 0:02:54]} 10. O-O {[%clk 0:02:56]}  Nbd7 {[%clk 0:02:53]} 11. Rc1 {[%clk 0:02:48]}  Be7 {[%clk 0:02:51]} 12. b4 {[%clk 0:02:47]}  O-O {[%clk 0:02:49]} 13. f4 {[%clk 0:02:48]}  Rfe8 {[%clk 0:02:43]} 14. Qf3 {[%clk 0:02:48]}  Bf8 {[%clk 0:02:26]} 15. g4 {[%clk 0:02:36]}  g6 {[%clk 0:02:11]} 16. Qh3 {[%clk 0:02:11]}  Bg7 {[%clk 0:02:03]} 17. g5 {[%clk 0:01:29]}  Nh5 {[%clk 0:02:04]} 18. f5 {[%clk 0:01:30]}  exf5 {[%clk 0:01:37]} 19. exf5 {[%clk 0:01:31]}  d5 {[%clk 0:01:39]} 20. Nxd5 {[%clk 0:01:13]}  Bxd5 {[%clk 0:01:11]} 21. cxd5 {[%clk 0:01:14]}  Qe5 {[%clk 0:01:12]} 22. Rce1 {[%clk 0:01:04]}  Qxd5 {[%clk 0:01:12]} 23. f6 {[%clk 0:01:02]}  Bf8 {[%clk 0:01:03]} 24. Qf3 {[%clk 0:01:00]}  Qd6 {[%clk 0:00:55]} 25. Qc6 {[%clk 0:00:29]}  Ne5 {[%clk 0:00:17]} 26. Qxd6 {[%clk 0:00:30]}  Bxd6 {[%clk 0:00:18]} 27. Be2 {[%clk 0:00:31]}  Bf8 {[%clk 0:00:16]} 28. Kf2 {[%clk 0:00:30]}  h6 {[%clk 0:00:15]} 29. h4 {[%clk 0:00:31]}  a5 {[%clk 0:00:14]} 30. bxa5 {[%clk 0:00:04]}  Rxa5 {[%clk 0:00:13]} 31. a4 {[%clk 0:00:05]}  Rxa4 {[%clk 0:00:09]} 32. Rb1 {[%clk 0:00:04]}  Bc5 {[%clk 0:00:08]} 33. Rfd1 {[%clk 0:00:03]}  Ra3 {[%clk 0:00:08]} 34. Rb3 {[%clk 0:00:04]}  Rxb3 {[%clk 0:00:06]} 35. Nxb3 {[%clk 0:00:05]}  Ng4+ {[%clk 0:00:04]} 36. Bxg4 {[%clk 0:00:05]}  Bxe3+ {[%clk 0:00:05]} 37. Kf3 {[%clk 0:00:05]}  Bc5 {[%clk 0:00:03]} 38. Nxc5 {[%clk 0:00:05]}  bxc5 {[%clk 0:00:04]} 39. Rd5 {[%clk 0:00:04]}  c4 {[%clk 0:00:04]} 40. Rc5 {[%clk 0:00:05]}  Rd8 {[%clk 0:00:03]} 41. Rxc4 {[%clk 0:00:04]}  hxg5 {[%clk 0:00:04]} 42. hxg5 {[%clk 0:00:05]}  Rd5 {[%clk 0:00:04]} 43. Rc8+ {[%clk 0:00:04]}  Kh7 {[%clk 0:00:05]} 44. Bxh5 {[%clk 0:00:04]}  gxh5 {[%clk 0:00:06]} 45. Kf4 {[%clk 0:00:06]}  Ra5 {[%clk 0:00:04]} 46. Rf8 {[%clk 0:00:06]}  Ra4+ {[%clk 0:00:04]} 47. Ke5 {[%clk 0:00:06]}  Ra5+ {[%clk 0:00:05]} 48. Kf4 {[%clk 0:00:05]}  Ra4+ {[%clk 0:00:05]} 49. Kf3 {[%clk 0:00:03]}  Kg6 {[%clk 0:00:04]} 50. Rg8+ {[%clk 0:00:04]}  Kf5 {[%clk 0:00:05]} 51. Rg7 {[%clk 0:00:05]}  Rf4+ {[%clk 0:00:05]} 52. Kg3 {[%clk 0:00:05]}  Rg4+ {[%clk 0:00:05]} 53. Kh3 {[%clk 0:00:06]}  Rxg5 {[%clk 0:00:04]} 54. Rxf7 {[%clk 0:00:06]}  Kg6 {[%clk 0:00:05]} 55. Rg7+ {[%clk 0:00:07]}  Kxf6 {[%clk 0:00:07]} 56. Rxg5 {[%clk 0:00:07]}  Kxg5 {[%clk 0:00:07]} 1/2-1/2

[Event "Grandmaster Triathlon (GM1)"]
[Site "Biel, CH"]
[Date "2025.07.20"]
[Round "12"]
[White "Murzin, Volodar"]
[Black "Fedoseev, Vladimir"]
[Result "0-1"]
[Board "2"]
[TimeControl "180+2"]
[WhiteFideId "44155573"]
[BlackFideId "24130737"]
[WhiteTitle "GM"]
[BlackTitle "GM"]
[WhiteElo "2669"]
[BlackElo "2746"]
[WhiteTeam "FID"]
[BlackTeam "SLO"]
[WhiteClock "0:00:03"]
[BlackClock "0:00:06"]
[Variant "Standard"]

1. e4 {[%clk 0:03:02]}  c5 {[%clk 0:03:00]} 2. Nf3 {[%clk 0:03:03]}  e6 {[%clk 0:03:02]} 3. Be2 {[%clk 0:03:03]}  Nc6 {[%clk 0:02:51]} 4. Nc3 {[%clk 0:03:01]}  Nf6 {[%clk 0:02:47]} 5. O-O {[%clk 0:03:00]}  Qb6 {[%clk 0:02:42]} 6. d3 {[%clk 0:02:46]}  Be7 {[%clk 0:02:40]} 7. Rb1 {[%clk 0:02:24]}  O-O {[%clk 0:02:40]} 8. Bg5 {[%clk 0:02:25]}  h6 {[%clk 0:02:38]} 9. Bh4 {[%clk 0:02:25]}  d6 {[%clk 0:02:35]} 10. Re1 {[%clk 0:02:22]}  a6 {[%clk 0:02:25]} 11. Bf1 {[%clk 0:02:21]}  Qc7 {[%clk 0:02:26]} 12. Ne2 {[%clk 0:01:53]}  b5 {[%clk 0:02:19]} 13. c3 {[%clk 0:01:51]}  Bb7 {[%clk 0:02:10]} 14. Qd2 {[%clk 0:01:35]}  Rfd8 {[%clk 0:02:09]} 15. Ng3 {[%clk 0:01:29]}  Ne5 {[%clk 0:01:27]} 16. Bxf6 {[%clk 0:01:15]}  Nxf3+ {[%clk 0:01:20]} 17. gxf3 {[%clk 0:01:16]}  Bxf6 {[%clk 0:01:21]} 18. f4 {[%clk 0:01:16]}  Qe7 {[%clk 0:00:31]} 19. Bg2 {[%clk 0:01:09]}  Bh4 {[%clk 0:00:30]} 20. d4 {[%clk 0:00:58]}  cxd4 {[%clk 0:00:29]} 21. cxd4 {[%clk 0:00:59]}  Rac8 {[%clk 0:00:30]} 22. Rbc1 {[%clk 0:00:54]}  Qd7 {[%clk 0:00:22]} 23. Rxc8 {[%clk 0:00:30]}  Rxc8 {[%clk 0:00:23]} 24. Rc1 {[%clk 0:00:31]}  Rc4 {[%clk 0:00:22]} 25. b3 {[%clk 0:00:30]}  Rc6 {[%clk 0:00:21]} 26. Nf1 {[%clk 0:00:23]}  Bd8 {[%clk 0:00:21]} 27. Rxc6 {[%clk 0:00:22]}  Bxc6 {[%clk 0:00:18]} 28. Ne3 {[%clk 0:00:22]}  Bb6 {[%clk 0:00:18]} 29. d5 {[%clk 0:00:20]}  Bb7 {[%clk 0:00:17]} 30. Bh3 {[%clk 0:00:20]}  Qe7 {[%clk 0:00:18]} 31. dxe6 {[%clk 0:00:19]}  fxe6 {[%clk 0:00:18]} 32. Qd3 {[%clk 0:00:18]}  Bc5 {[%clk 0:00:19]} 33. Kf1 {[%clk 0:00:14]}  Kf8 {[%clk 0:00:17]} 34. Bg2 {[%clk 0:00:10]}  Qh4 {[%clk 0:00:16]} 35. f5 {[%clk 0:00:09]}  Qxh2 {[%clk 0:00:08]} 36. fxe6 {[%clk 0:00:08]}  Qe5 {[%clk 0:00:09]} 37. Nd5 {[%clk 0:00:06]}  Qa1+ {[%clk 0:00:10]} 38. Ke2 {[%clk 0:00:07]}  Qxa2+ {[%clk 0:00:11]} 39. Kd1 {[%clk 0:00:04]}  Qxf2 {[%clk 0:00:11]} 40. Bh3 {[%clk 0:00:04]}  Qd4 {[%clk 0:00:11]} 41. Qxd4 {[%clk 0:00:04]}  Bxd4 {[%clk 0:00:12]} 42. Bf5 {[%clk 0:00:05]}  Bf6 {[%clk 0:00:13]} 43. Bg6 {[%clk 0:00:06]}  a5 {[%clk 0:00:09]} 44. Kc2 {[%clk 0:00:07]}  a4 {[%clk 0:00:07]} 45. b4 {[%clk 0:00:04]}  Bc6 {[%clk 0:00:07]} 46. Nc7 {[%clk 0:00:03]}  Ke7 {[%clk 0:00:06]} 0-1